[Event "Titled Tuesday Blitz April 18 Late 2023"]
[White "Averjanov, Alexey"]
[Black "Hansen, Eric"]
[WhiteFideId "14109867"]
[BlackFideId "2606771"]
[WhiteElo "2655"]
[BlackElo "2561"]
[Result "0-1"]
[Round "08"]
[TimeControl "180+2"]
[Date "2023.04.18"]
[WhiteClock "0:00:07"]
[BlackClock "0:00:10"]

1. d4 {[%clk 0:03:00]}  Nf6 {[%clk 0:02:58]} 2. c4 {[%clk 0:03:01]}  Nc6 {[%clk 0:02:46]} 3. Nf3 {[%clk 0:03:00]}  e6 {[%clk 0:02:45]} 4. g3 {[%clk 0:03:00]}  d5 {[%clk 0:02:32]} 5. Nbd2 {[%clk 0:02:57]}  Bb4 {[%clk 0:02:23]} 6. Qc2 {[%clk 0:02:55]}  dxc4 {[%clk 0:02:22]} 7. Qxc4 {[%clk 0:02:55]}  Qd5 {[%clk 0:02:22]} 8. Qxd5 {[%clk 0:02:50]}  exd5 {[%clk 0:02:20]} 9. a3 {[%clk 0:02:50]}  Bd6 {[%clk 0:02:20]} 10. Bg2 {[%clk 0:02:50]}  O-O {[%clk 0:02:19]} 11. O-O {[%clk 0:02:50]}  Re8 {[%clk 0:02:20]} 12. e3 {[%clk 0:02:49]}  Bf5 {[%clk 0:02:20]} 13. b3 {[%clk 0:02:48]}  a5 {[%clk 0:02:19]} 14. Bb2 {[%clk 0:02:48]}  h6 {[%clk 0:02:18]} 15. Rfc1 {[%clk 0:02:48]}  Ra6 {[%clk 0:02:07]} 16. Ne5 {[%clk 0:02:41]}  Rb6 {[%clk 0:02:05]} 17. Nxc6 {[%clk 0:02:34]}  bxc6 {[%clk 0:02:05]} 18. Rc3 {[%clk 0:02:32]}  Reb8 {[%clk 0:01:51]} 19. Rac1 {[%clk 0:02:30]}  Bd7 {[%clk 0:01:51]} 20. Bf1 {[%clk 0:02:26]}  R6b7 {[%clk 0:01:48]} 21. Bd3 {[%clk 0:02:25]}  h5 {[%clk 0:01:45]} 22. h4 {[%clk 0:02:23]}  g6 {[%clk 0:01:45]} 23. Kf1 {[%clk 0:02:12]}  Ra8 {[%clk 0:01:37]} 24. Kg2 {[%clk 0:02:10]}  Rbb8 {[%clk 0:01:35]} 25. Kf1 {[%clk 0:02:09]}  Rb6 {[%clk 0:01:30]} 26. Kg2 {[%clk 0:02:08]}  Kf8 {[%clk 0:01:25]} 27. Kf1 {[%clk 0:02:09]}  Ke7 {[%clk 0:01:25]} 28. Kg2 {[%clk 0:02:09]}  Kd8 {[%clk 0:01:25]} 29. Kf1 {[%clk 0:02:09]}  Kc8 {[%clk 0:01:26]} 30. Kg2 {[%clk 0:02:09]}  Kb7 {[%clk 0:01:26]} 31. Kf1 {[%clk 0:02:07]}  Re8 {[%clk 0:01:25]} 32. Kg2 {[%clk 0:02:06]}  Ng4 {[%clk 0:01:20]} 33. Nf3 {[%clk 0:01:52]}  Re7 {[%clk 0:01:13]} 34. Nh2 {[%clk 0:01:47]}  Nh6 {[%clk 0:01:10]} 35. Nf3 {[%clk 0:01:46]}  Nf5 {[%clk 0:01:05]} 36. Re1 {[%clk 0:01:33]}  f6 {[%clk 0:01:02]} 37. Rec1 {[%clk 0:01:33]}  Ka7 {[%clk 0:00:54]} 38. Re1 {[%clk 0:01:27]}  Rb8 {[%clk 0:00:54]} 39. Rec1 {[%clk 0:01:25]}  Rbe8 {[%clk 0:00:54]} 40. Bb1 {[%clk 0:01:24]}  Kb7 {[%clk 0:00:51]} 41. Re1 {[%clk 0:01:19]}  Rg8 {[%clk 0:00:44]} 42. Rh1 {[%clk 0:01:16]}  Nh6 {[%clk 0:00:41]} 43. Bd3 {[%clk 0:01:10]}  Ng4 {[%clk 0:00:40]} 44. Bb1 {[%clk 0:01:10]}  Be8 {[%clk 0:00:36]} 45. Bc2 {[%clk 0:01:08]}  g5 {[%clk 0:00:36]} 46. Bb1 {[%clk 0:01:04]}  Rgg7 {[%clk 0:00:26]} 47. Rhc1 {[%clk 0:01:01]}  gxh4 {[%clk 0:00:24]} 48. Nxh4 {[%clk 0:01:01]}  Nxf2 {[%clk 0:00:23]} 49. Nf5 {[%clk 0:00:57]}  Ng4 {[%clk 0:00:23]} 50. Nxe7 {[%clk 0:00:53]}  Rxe7 {[%clk 0:00:23]} 51. Kf3 {[%clk 0:00:53]}  Nh2+ {[%clk 0:00:22]} 52. Kg2 {[%clk 0:00:53]}  Ng4 {[%clk 0:00:22]} 53. Kf3 {[%clk 0:00:54]}  Rg7 {[%clk 0:00:17]} 54. Rg1 {[%clk 0:00:53]}  Nh2+ {[%clk 0:00:16]} 55. Kf2 {[%clk 0:00:53]}  Ng4+ {[%clk 0:00:12]} 56. Kf3 {[%clk 0:00:54]}  Nh2+ {[%clk 0:00:08]} 57. Kf2 {[%clk 0:00:54]}  Rg5 {[%clk 0:00:06]} 58. Bd3 {[%clk 0:00:50]}  Ng4+ {[%clk 0:00:04]} 59. Kf3 {[%clk 0:00:51]}  Bd7 {[%clk 0:00:05]} 60. Bc1 {[%clk 0:00:45]}  Kc8 {[%clk 0:00:04]} 61. Rc2 {[%clk 0:00:43]}  Rg8 {[%clk 0:00:03]} 62. Re2 {[%clk 0:00:41]}  f5 {[%clk 0:00:02]} 63. Rh1 {[%clk 0:00:40]}  Nf6 {[%clk 0:00:02]} 64. Rg2 {[%clk 0:00:36]}  Kd8 {[%clk 0:00:03]} 65. a4 {[%clk 0:00:35]}  Ke7 {[%clk 0:00:02]} 66. Bd2 {[%clk 0:00:35]}  Ra8 {[%clk 0:00:03]} 67. Bc2 {[%clk 0:00:34]}  Kf7 {[%clk 0:00:02]} 68. Rgh2 {[%clk 0:00:34]}  Kg6 {[%clk 0:00:03]} 69. Rg2 {[%clk 0:00:32]}  Ne4 {[%clk 0:00:03]} 70. Bxe4 {[%clk 0:00:30]}  fxe4+ {[%clk 0:00:04]} 71. Ke2 {[%clk 0:00:30]}  Bg4+ {[%clk 0:00:04]} 72. Kf2 {[%clk 0:00:29]}  Bf3 {[%clk 0:00:05]} 73. Rgh2 {[%clk 0:00:29]}  Bxh1 {[%clk 0:00:04]} 74. Rxh1 {[%clk 0:00:30]}  Rb8 {[%clk 0:00:05]} 75. Rb1 {[%clk 0:00:28]}  Rf8+ {[%clk 0:00:05]} 76. Kg2 {[%clk 0:00:28]}  Rf3 {[%clk 0:00:06]} 77. Re1 {[%clk 0:00:27]}  Rxg3+ {[%clk 0:00:06]} 78. Kf2 {[%clk 0:00:27]}  Kf5 {[%clk 0:00:06]} 79. Bxa5 {[%clk 0:00:26]}  h4 {[%clk 0:00:06]} 80. Rh1 {[%clk 0:00:24]}  h3 {[%clk 0:00:06]} 81. Be1 {[%clk 0:00:21]}  Rg2+ {[%clk 0:00:05]} 82. Kf1 {[%clk 0:00:21]}  Kg4 {[%clk 0:00:06]} 83. a5 {[%clk 0:00:21]}  Ra2 {[%clk 0:00:04]} 84. Rg1+ {[%clk 0:00:18]}  Kf3 {[%clk 0:00:05]} 85. Rg6 {[%clk 0:00:17]}  h2 {[%clk 0:00:04]} 86. Rh6 {[%clk 0:00:16]}  Kxe3 {[%clk 0:00:04]} 87. Rh3+ {[%clk 0:00:14]}  Kf4 {[%clk 0:00:02]} 88. a6 {[%clk 0:00:14]}  Kg4 {[%clk 0:00:02]} 89. Rh8 {[%clk 0:00:11]}  Rxa6 {[%clk 0:00:02]} 90. Rg8+ {[%clk 0:00:11]}  Kf5 {[%clk 0:00:02]} 91. Rf8+ {[%clk 0:00:11]}  Ke6 {[%clk 0:00:03]} 92. Rh8 {[%clk 0:00:11]}  Ra2 {[%clk 0:00:03]} 93. b4 {[%clk 0:00:10]}  Rb2 {[%clk 0:00:03]} 94. Rh6+ {[%clk 0:00:10]}  Kf5 {[%clk 0:00:04]} 95. Rh5+ {[%clk 0:00:10]}  Kg4 {[%clk 0:00:04]} 96. Rh7 {[%clk 0:00:10]}  e3 {[%clk 0:00:04]} 97. Rg7+ {[%clk 0:00:10]}  Kf4 {[%clk 0:00:05]} 98. Rf7+ {[%clk 0:00:09]}  Ke4 {[%clk 0:00:05]} 99. Rh7 {[%clk 0:00:09]}  Rc2 {[%clk 0:00:06]} 100. Rh4+ {[%clk 0:00:09]}  Kd3 {[%clk 0:00:06]} 101. Rh3 {[%clk 0:00:09]}  Rb2 {[%clk 0:00:06]} 102. Rh4 {[%clk 0:00:09]}  Ra2 {[%clk 0:00:06]} 103. Rh3 {[%clk 0:00:07]}  Ra1 {[%clk 0:00:06]} 104. Rh4 {[%clk 0:00:07]}  Bxb4 {[%clk 0:00:06]} 105. Kg2 {[%clk 0:00:06]}  Rxe1 {[%clk 0:00:06]} 106. Kxh2 {[%clk 0:00:06]}  Bc3 {[%clk 0:00:06]} 107. Rh3 {[%clk 0:00:06]}  Bxd4 {[%clk 0:00:07]} 108. Rh7 {[%clk 0:00:06]}  Re2+ {[%clk 0:00:07]} 109. Kg3 {[%clk 0:00:06]}  Rf2 {[%clk 0:00:08]} 110. Rxc7 {[%clk 0:00:06]}  Be5+ {[%clk 0:00:08]} 111. Kg4 {[%clk 0:00:06]}  Bxc7 {[%clk 0:00:09]} 112. Kh3 {[%clk 0:00:06]}  Ke4 {[%clk 0:00:09]} 113. Kg4 {[%clk 0:00:06]}  Be5 {[%clk 0:00:09]} 114. Kh3 {[%clk 0:00:06]}  Kf5 {[%clk 0:00:09]} 115. Kh4 {[%clk 0:00:07]}  Rh2# {[%clk 0:00:10]} 0-1


[Site "https://www.chess.com"]

[Event "Titled Tuesday Blitz April 18 Late 2023"]
[White "Indjic, Aleksandar"]
[Black "Omranalhosani21"]
[WhiteFideId "911925"]
[WhiteElo "2614"]
[BlackElo "2590"]
[Result "1-0"]
[Round "08"]
[TimeControl "180+2"]
[Date "2023.04.18"]
[WhiteClock "0:00:39"]
[BlackClock "0:00:02"]

1. a3 {[%clk 0:03:00]}  Nf6 {[%clk 0:02:53]} 2. c4 {[%clk 0:03:01]}  g6 {[%clk 0:02:51]} 3. Nf3 {[%clk 0:03:00]}  Bg7 {[%clk 0:02:50]} 4. g3 {[%clk 0:02:58]}  O-O {[%clk 0:02:49]} 5. Bg2 {[%clk 0:02:58]}  d6 {[%clk 0:02:44]} 6. O-O {[%clk 0:02:55]}  Nc6 {[%clk 0:02:41]} 7. d3 {[%clk 0:02:56]}  e5 {[%clk 0:02:30]} 8. Nc3 {[%clk 0:02:56]}  Nd4 {[%clk 0:02:23]} 9. Nd2 {[%clk 0:02:53]}  Ne6 {[%clk 0:02:22]} 10. Nd5 {[%clk 0:02:51]}  c6 {[%clk 0:02:12]} 11. Nxf6+ {[%clk 0:02:50]}  Bxf6 {[%clk 0:02:13]} 12. b4 {[%clk 0:02:47]}  Bg7 {[%clk 0:02:13]} 13. Bb2 {[%clk 0:02:45]}  f5 {[%clk 0:02:12]} 14. b5 {[%clk 0:02:42]}  Bd7 {[%clk 0:02:12]} 15. a4 {[%clk 0:02:42]}  a5 {[%clk 0:01:57]} 16. Rb1 {[%clk 0:02:40]}  Rf7 {[%clk 0:01:39]} 17. Ba1 {[%clk 0:02:35]}  h5 {[%clk 0:01:36]} 18. e3 {[%clk 0:02:29]}  h4 {[%clk 0:01:36]} 19. f4 {[%clk 0:02:23]}  hxg3 {[%clk 0:01:31]} 20. hxg3 {[%clk 0:02:23]}  exf4 {[%clk 0:00:48]} 21. gxf4 {[%clk 0:02:23]}  Bxa1 {[%clk 0:00:47]} 22. Rxa1 {[%clk 0:02:24]}  Qf6 {[%clk 0:00:43]} 23. Nf3 {[%clk 0:02:24]}  Re8 {[%clk 0:00:43]} 24. Qd2 {[%clk 0:02:23]}  g5 {[%clk 0:00:38]} 25. fxg5 {[%clk 0:02:03]}  Nxg5 {[%clk 0:00:39]} 26. Nxg5 {[%clk 0:02:01]}  Qxg5 {[%clk 0:00:40]} 27. Rf3 {[%clk 0:02:01]}  Rfe7 {[%clk 0:00:36]} 28. Re1 {[%clk 0:01:51]}  f4 {[%clk 0:00:35]} 29. e4 {[%clk 0:01:51]}  Rf8 {[%clk 0:00:34]} 30. Ref1 {[%clk 0:01:49]}  Ref7 {[%clk 0:00:31]} 31. d4 {[%clk 0:01:16]}  Bg4 {[%clk 0:00:31]} 32. Rb3 {[%clk 0:01:02]}  Qg7 {[%clk 0:00:21]} 33. Kf2 {[%clk 0:00:58]}  c5 {[%clk 0:00:16]} 34. Bf3 {[%clk 0:00:54]}  Bxf3 {[%clk 0:00:11]} 35. Rxf3 {[%clk 0:00:54]}  Qxd4+ {[%clk 0:00:11]} 36. Qxd4 {[%clk 0:00:54]}  cxd4 {[%clk 0:00:11]} 37. Rd1 {[%clk 0:00:55]}  Rc8 {[%clk 0:00:09]} 38. Rxd4 {[%clk 0:00:54]}  Rfc7 {[%clk 0:00:10]} 39. Rc3 {[%clk 0:00:55]}  Kf7 {[%clk 0:00:09]} 40. Kf3 {[%clk 0:00:55]}  Ke6 {[%clk 0:00:10]} 41. Kxf4 {[%clk 0:00:54]}  Rf8+ {[%clk 0:00:10]} 42. Ke3 {[%clk 0:00:54]}  Rcf7 {[%clk 0:00:10]} 43. Rdd3 {[%clk 0:00:51]}  Rf3+ {[%clk 0:00:10]} 44. Kd4 {[%clk 0:00:52]}  Rf1 {[%clk 0:00:09]} 45. Rh3 {[%clk 0:00:51]}  Rd1+ {[%clk 0:00:08]} 46. Rcd3 {[%clk 0:00:51]}  Rxd3+ {[%clk 0:00:08]} 47. Kxd3 {[%clk 0:00:51]}  b6 {[%clk 0:00:07]} 48. Kd4 {[%clk 0:00:51]}  Rf1 {[%clk 0:00:05]} 49. Rh7 {[%clk 0:00:51]}  Rd1+ {[%clk 0:00:03]} 50. Kc3 {[%clk 0:00:51]}  Ra1 {[%clk 0:00:03]} 51. Rb7 {[%clk 0:00:49]}  Rxa4 {[%clk 0:00:03]} 52. Rxb6 {[%clk 0:00:50]}  Ra1 {[%clk 0:00:02]} 53. Ra6 {[%clk 0:00:44]}  Ke5 {[%clk 0:00:02]} 54. Kb2 {[%clk 0:00:42]}  Ra4 {[%clk 0:00:02]} 55. Kb3 {[%clk 0:00:41]}  Rb4+ {[%clk 0:00:02]} 56. Kc3 {[%clk 0:00:41]}  Kxe4 {[%clk 0:00:03]} 57. Rxd6 {[%clk 0:00:41]}  Rb1 {[%clk 0:00:02]} 58. Re6+ {[%clk 0:00:41]}  Kf5 {[%clk 0:00:02]} 59. Ra6 {[%clk 0:00:41]}  Ke5 {[%clk 0:00:02]} 60. Rxa5 {[%clk 0:00:39]} 1-0


[Site "https://www.chess.com"]

[Event "Titled Tuesday Blitz April 18 Late 2023"]
[White "Sarana, Alexey"]
[Black "Rosen, Eric"]
[WhiteFideId "24133795"]
[BlackFideId "2032562"]
[WhiteElo "2714"]
[BlackElo "2331"]
[Result "1-0"]
[Round "08"]
[TimeControl "180+2"]
[Date "2023.04.18"]
[WhiteClock "0:00:52"]
[BlackClock "0:00:01"]

1. c4 {[%clk 0:03:00]}  e6 {[%clk 0:02:59]} 2. Nf3 {[%clk 0:03:00]}  d5 {[%clk 0:03:00]} 3. g3 {[%clk 0:03:00]}  Nf6 {[%clk 0:02:57]} 4. d4 {[%clk 0:03:01]}  dxc4 {[%clk 0:02:55]} 5. Bg2 {[%clk 0:02:58]}  Bb4+ {[%clk 0:02:56]} 6. Bd2 {[%clk 0:02:58]}  c5 {[%clk 0:02:56]} 7. dxc5 {[%clk 0:02:49]}  Bxc5 {[%clk 0:02:56]} 8. Qa4+ {[%clk 0:02:49]}  Nbd7 {[%clk 0:02:56]} 9. O-O {[%clk 0:02:45]}  O-O {[%clk 0:02:56]} 10. Qxc4 {[%clk 0:02:45]}  b5 {[%clk 0:02:56]} 11. Qb3 {[%clk 0:02:42]}  Qb6 {[%clk 0:02:43]} 12. Nc3 {[%clk 0:02:40]}  a6 {[%clk 0:02:38]} 13. a4 {[%clk 0:02:40]}  b4 {[%clk 0:02:33]} 14. a5 {[%clk 0:02:39]}  Qa7 {[%clk 0:02:19]} 15. Na4 {[%clk 0:02:38]}  Be7 {[%clk 0:01:38]} 16. Be3 {[%clk 0:02:36]}  Qb8 {[%clk 0:01:27]} 17. Nd4 {[%clk 0:02:34]}  Bb7 {[%clk 0:01:25]} 18. Nc6 {[%clk 0:02:34]}  Bxc6 {[%clk 0:01:24]} 19. Bxc6 {[%clk 0:02:35]}  Ne5 {[%clk 0:01:10]} 20. Bxa8 {[%clk 0:02:33]}  Qxa8 {[%clk 0:01:11]} 21. f3 {[%clk 0:02:33]}  h5 {[%clk 0:01:03]} 22. Nb6 {[%clk 0:02:31]}  Qb7 {[%clk 0:01:01]} 23. Rac1 {[%clk 0:02:27]}  h4 {[%clk 0:01:01]} 24. Qc2 {[%clk 0:02:27]}  Nd5 {[%clk 0:00:09]} 25. Bf2 {[%clk 0:02:15]}  h3 {[%clk 0:00:07]} 26. Qe4 {[%clk 0:02:14]}  Bf6 {[%clk 0:00:07]} 27. Rfd1 {[%clk 0:02:13]}  Rd8 {[%clk 0:00:06]} 28. Bd4 {[%clk 0:02:01]}  Qb8 {[%clk 0:00:06]} 29. Kf1 {[%clk 0:01:57]}  b3 {[%clk 0:00:06]} 30. Bxe5 {[%clk 0:01:46]}  Bxe5 {[%clk 0:00:05]} 31. Nxd5 {[%clk 0:01:46]}  exd5 {[%clk 0:00:06]} 32. Rxd5 {[%clk 0:01:46]}  Re8 {[%clk 0:00:03]} 33. Qd3 {[%clk 0:01:43]}  Bxg3 {[%clk 0:00:01]} 34. Rh5 {[%clk 0:01:31]}  Bxh2 {[%clk 0:00:01]} 35. Qh7+ {[%clk 0:01:28]}  Kf8 {[%clk 0:00:02]} 36. Rxh3 {[%clk 0:01:23]}  Bf4 {[%clk 0:00:01]} 37. Rc4 {[%clk 0:01:18]}  Bh6 {[%clk 0:00:01]} 38. Rxh6 {[%clk 0:01:17]}  gxh6 {[%clk 0:00:01]} 39. Qxh6+ {[%clk 0:01:18]}  Ke7 {[%clk 0:00:02]} 40. Re4+ {[%clk 0:01:18]}  Kd7 {[%clk 0:00:02]} 41. Rd4+ {[%clk 0:01:18]}  Ke7 {[%clk 0:00:01]} 42. Qxa6 {[%clk 0:01:14]}  Rh8 {[%clk 0:00:01]} 43. Re4+ {[%clk 0:00:51]}  Kf8 {[%clk 0:00:01]} 44. Qb6 {[%clk 0:00:52]} 1-0


[Site "https://www.chess.com"]

[Event "Titled Tuesday Blitz April 18 Late 2023"]
[White "Quesada Perez, Yasser"]
[Black "Leiva, Gianmarco"]
[WhiteFideId "3509362"]
[BlackFideId "3804399"]
[WhiteElo "2496"]
[BlackElo "2345"]
[Result "1-0"]
[Round "08"]
[TimeControl "180+2"]
[Date "2023.04.18"]
[WhiteClock "0:01:43"]
[BlackClock "0:00:50"]

1. e4 {[%clk 0:03:00]}  c5 {[%clk 0:02:58]} 2. Nc3 {[%clk 0:02:59]}  Nc6 {[%clk 0:02:57]} 3. Bb5 {[%clk 0:02:59]}  Nd4 {[%clk 0:02:58]} 4. Bc4 {[%clk 0:03:00]}  Nf6 {[%clk 0:02:56]} 5. Nge2 {[%clk 0:02:58]}  e6 {[%clk 0:02:38]} 6. O-O {[%clk 0:02:57]}  d5 {[%clk 0:02:34]} 7. exd5 {[%clk 0:02:53]}  exd5 {[%clk 0:02:35]} 8. Nxd5 {[%clk 0:02:50]}  Nxd5 {[%clk 0:02:25]} 9. Nxd4 {[%clk 0:02:50]}  cxd4 {[%clk 0:02:26]} 10. Qh5 {[%clk 0:02:49]}  Be6 {[%clk 0:02:26]} 11. Re1 {[%clk 0:02:50]}  g6 {[%clk 0:02:07]} 12. Qxd5 {[%clk 0:02:41]}  Qxd5 {[%clk 0:02:05]} 13. Bxd5 {[%clk 0:02:42]}  Rc8 {[%clk 0:01:58]} 14. c3 {[%clk 0:02:36]}  Bg7 {[%clk 0:01:49]} 15. Bxb7 {[%clk 0:02:32]}  Rc7 {[%clk 0:01:49]} 16. Bd5 {[%clk 0:02:30]}  Kd7 {[%clk 0:01:42]} 17. Bxe6+ {[%clk 0:02:28]}  fxe6 {[%clk 0:01:43]} 18. Re4 {[%clk 0:02:07]}  Kd6 {[%clk 0:01:43]} 19. Rb1 {[%clk 0:01:53]}  Rb8 {[%clk 0:01:39]} 20. b3 {[%clk 0:01:53]}  Kd5 {[%clk 0:01:39]} 21. f3 {[%clk 0:01:47]}  dxc3 {[%clk 0:01:13]} 22. dxc3 {[%clk 0:01:48]}  Rxc3 {[%clk 0:01:10]} 23. Bb2 {[%clk 0:01:45]}  Bd4+ {[%clk 0:00:49]} 24. Rxd4+ {[%clk 0:01:42]}  Kxd4 {[%clk 0:00:50]} 25. Rd1+ {[%clk 0:01:43]} 1-0


[Site "https://www.chess.com"]

[Event "Titled Tuesday Blitz April 18 Late 2023"]
[White "Vovk, Orest"]
[Black "Szpar, Milosz"]
[WhiteFideId "14113490"]
[BlackFideId "1184989"]
[WhiteElo "2215"]
[BlackElo "2436"]
[Result "0-1"]
[Round "08"]
[TimeControl "180+2"]
[Date "2023.04.18"]
[WhiteClock "0:00:03"]
[BlackClock "0:00:45"]

1. c4 {[%clk 0:03:00]}  e5 {[%clk 0:02:57]} 2. Nc3 {[%clk 0:03:01]}  Nf6 {[%clk 0:02:57]} 3. Nf3 {[%clk 0:02:58]}  Nc6 {[%clk 0:02:51]} 4. d3 {[%clk 0:02:54]}  Bb4 {[%clk 0:02:50]} 5. g4 {[%clk 0:02:54]}  e4 {[%clk 0:02:41]} 6. dxe4 {[%clk 0:02:41]}  Nxe4 {[%clk 0:02:41]} 7. Qd3 {[%clk 0:02:41]}  Bxc3+ {[%clk 0:02:33]} 8. bxc3 {[%clk 0:02:40]}  Qe7 {[%clk 0:02:33]} 9. Nd4 {[%clk 0:02:35]}  Nc5 {[%clk 0:02:25]} 10. Qe3 {[%clk 0:02:29]}  d6 {[%clk 0:02:21]} 11. Nxc6 {[%clk 0:02:19]}  bxc6 {[%clk 0:02:20]} 12. Bg2 {[%clk 0:02:17]}  Bd7 {[%clk 0:02:18]} 13. Qxe7+ {[%clk 0:02:11]}  Kxe7 {[%clk 0:02:19]} 14. Be3 {[%clk 0:02:12]}  Na4 {[%clk 0:02:12]} 15. Kd2 {[%clk 0:02:09]}  Rab8 {[%clk 0:02:11]} 16. Rhb1 {[%clk 0:02:02]}  Nb2 {[%clk 0:02:07]} 17. c5 {[%clk 0:01:48]}  d5 {[%clk 0:02:00]} 18. h3 {[%clk 0:01:25]}  Nc4+ {[%clk 0:01:59]} 19. Kd3 {[%clk 0:01:18]}  h5 {[%clk 0:01:58]} 20. f3 {[%clk 0:01:00]}  hxg4 {[%clk 0:01:52]} 21. fxg4 {[%clk 0:00:52]}  f5 {[%clk 0:01:51]} 22. Rxb8 {[%clk 0:00:51]}  Rxb8 {[%clk 0:01:50]} 23. Bg5+ {[%clk 0:00:41]}  Kf7 {[%clk 0:01:46]} 24. Rf1 {[%clk 0:00:29]}  g6 {[%clk 0:01:40]} 25. e4 {[%clk 0:00:22]}  Rb2 {[%clk 0:01:28]} 26. exd5 {[%clk 0:00:17]}  Rxg2 {[%clk 0:01:27]} 27. Kxc4 {[%clk 0:00:17]}  cxd5+ {[%clk 0:01:23]} 28. Kxd5 {[%clk 0:00:15]}  Rg3 {[%clk 0:01:23]} 29. Kd4 {[%clk 0:00:10]}  Rxh3 {[%clk 0:01:22]} 30. gxf5 {[%clk 0:00:11]}  Bxf5 {[%clk 0:01:22]} 31. c6 {[%clk 0:00:09]}  Ke6 {[%clk 0:01:18]} 32. Bf4 {[%clk 0:00:08]}  Rd3+ {[%clk 0:01:17]} 33. Kc4 {[%clk 0:00:07]}  Rd8 {[%clk 0:01:02]} 34. Re1+ {[%clk 0:00:08]}  Kf7 {[%clk 0:01:01]} 35. Kc5 {[%clk 0:00:06]}  Rc8 {[%clk 0:00:59]} 36. Rd1 {[%clk 0:00:05]}  Be6 {[%clk 0:00:56]} 37. Rd7+ {[%clk 0:00:04]}  Bxd7 {[%clk 0:00:55]} 38. cxd7 {[%clk 0:00:05]}  Rd8 {[%clk 0:00:55]} 39. Kc6 {[%clk 0:00:05]}  Ke6 {[%clk 0:00:55]} 40. Bxc7 {[%clk 0:00:04]}  Rxd7 {[%clk 0:00:55]} 41. c4 {[%clk 0:00:03]}  Rd2 {[%clk 0:00:53]} 42. a4 {[%clk 0:00:03]}  Rc2 {[%clk 0:00:52]} 43. c5 {[%clk 0:00:03]}  g5 {[%clk 0:00:52]} 44. a5 {[%clk 0:00:04]}  Rb2 {[%clk 0:00:51]} 45. a6 {[%clk 0:00:03]}  g4 {[%clk 0:00:48]} 46. Bd6 {[%clk 0:00:02]}  Rb3 {[%clk 0:00:46]} 47. Bc7 {[%clk 0:00:02]}  g3 {[%clk 0:00:46]} 48. Bxg3 {[%clk 0:00:02]}  Rxg3 {[%clk 0:00:45]} 49. Kb7 {[%clk 0:00:03]}  Rg7+ {[%clk 0:00:45]} 50. Kb8 {[%clk 0:00:03]}  Kd5 {[%clk 0:00:45]} 0-1


[Site "https://www.chess.com"]

[Event "Titled Tuesday Blitz April 18 Late 2023"]
[White "Klenburg, Michael"]
[Black "Flores, Diego"]
[WhiteFideId "14102072"]
[BlackFideId "108049"]
[WhiteElo "2396"]
[BlackElo "2613"]
[Result "0-1"]
[Round "08"]
[TimeControl "180+2"]
[Date "2023.04.18"]
[WhiteClock "0:00:31"]
[BlackClock "0:00:34"]

1. g3 {[%clk 0:02:55]}  d5 {[%clk 0:02:53]} 2. Bg2 {[%clk 0:02:55]}  c6 {[%clk 0:02:54]} 3. d3 {[%clk 0:02:55]}  e5 {[%clk 0:02:49]} 4. Nf3 {[%clk 0:02:53]}  Bd6 {[%clk 0:02:49]} 5. O-O {[%clk 0:02:53]}  Ne7 {[%clk 0:02:49]} 6. e4 {[%clk 0:02:53]}  O-O {[%clk 0:02:47]} 7. Nbd2 {[%clk 0:02:51]}  Bc7 {[%clk 0:02:32]} 8. Re1 {[%clk 0:02:49]}  d4 {[%clk 0:02:30]} 9. Rf1 {[%clk 0:02:49]}  c5 {[%clk 0:02:30]} 10. Nc4 {[%clk 0:02:47]}  Nbc6 {[%clk 0:02:30]} 11. a4 {[%clk 0:02:47]}  b6 {[%clk 0:02:26]} 12. Nfd2 {[%clk 0:02:45]}  a6 {[%clk 0:02:26]} 13. Bf3 {[%clk 0:02:42]}  Rb8 {[%clk 0:02:25]} 14. Bg4 {[%clk 0:02:41]}  b5 {[%clk 0:02:26]} 15. Na3 {[%clk 0:02:38]}  Kh8 {[%clk 0:02:03]} 16. Bxc8 {[%clk 0:02:37]}  Qxc8 {[%clk 0:02:03]} 17. Nf3 {[%clk 0:02:25]}  f6 {[%clk 0:02:00]} 18. Nh4 {[%clk 0:02:24]}  g5 {[%clk 0:02:00]} 19. Ng2 {[%clk 0:02:24]}  Qh3 {[%clk 0:01:59]} 20. f3 {[%clk 0:02:21]}  Ng6 {[%clk 0:01:55]} 21. Rf2 {[%clk 0:02:20]}  Rg8 {[%clk 0:01:55]} 22. Kh1 {[%clk 0:02:18]}  Rg7 {[%clk 0:01:31]} 23. Bd2 {[%clk 0:02:17]}  Qe6 {[%clk 0:01:23]} 24. Qf1 {[%clk 0:01:59]}  Qd7 {[%clk 0:00:48]} 25. f4 {[%clk 0:01:48]}  gxf4 {[%clk 0:00:45]} 26. gxf4 {[%clk 0:01:48]}  exf4 {[%clk 0:00:44]} 27. Nxf4 {[%clk 0:01:47]}  Nxf4 {[%clk 0:00:36]} 28. Bxf4 {[%clk 0:01:47]}  Ne5 {[%clk 0:00:35]} 29. Bh6 {[%clk 0:00:52]}  Rg6 {[%clk 0:00:35]} 30. Rxf6 {[%clk 0:00:50]}  Ng4 {[%clk 0:00:34]} 31. Rf8+ {[%clk 0:00:49]}  Rxf8 {[%clk 0:00:34]} 32. Qxf8+ {[%clk 0:00:35]}  Rg8 {[%clk 0:00:34]} 33. Qxc5 {[%clk 0:00:31]}  Nf2# {[%clk 0:00:34]} 0-1


[Site "https://www.chess.com"]

[Event "Titled Tuesday Blitz April 18 Late 2023"]
[White "Lenaerts, Lennert"]
[Black "Bazeev, German"]
[WhiteFideId "211435"]
[BlackFideId "24119350"]
[WhiteElo "2334"]
[BlackElo "2466"]
[Result "1-0"]
[Round "08"]
[TimeControl "180+2"]
[Date "2023.04.18"]
[WhiteClock "0:00:13"]
[BlackClock "0:00:03"]

1. d4 {[%clk 0:02:59]}  Nf6 {[%clk 0:02:31]} 2. c4 {[%clk 0:02:59]}  e6 {[%clk 0:02:31]} 3. Nc3 {[%clk 0:02:59]}  Bb4 {[%clk 0:02:31]} 4. g3 {[%clk 0:03:00]}  O-O {[%clk 0:02:29]} 5. Bg2 {[%clk 0:03:00]}  d5 {[%clk 0:02:29]} 6. Nf3 {[%clk 0:03:01]}  dxc4 {[%clk 0:02:30]} 7. O-O {[%clk 0:03:01]}  c5 {[%clk 0:02:30]} 8. dxc5 {[%clk 0:03:00]}  Bxc3 {[%clk 0:02:29]} 9. bxc3 {[%clk 0:02:59]}  Nc6 {[%clk 0:02:29]} 10. Qa4 {[%clk 0:02:57]}  e5 {[%clk 0:02:17]} 11. Qxc4 {[%clk 0:02:54]}  h6 {[%clk 0:02:14]} 12. Ba3 {[%clk 0:02:35]}  Qa5 {[%clk 0:02:02]} 13. Bb4 {[%clk 0:02:34]}  Qa4 {[%clk 0:02:01]} 14. Qb3 {[%clk 0:02:33]}  Qa6 {[%clk 0:02:00]} 15. Rfe1 {[%clk 0:02:24]}  Be6 {[%clk 0:01:59]} 16. Qb2 {[%clk 0:02:22]}  Bd5 {[%clk 0:01:55]} 17. Bf1 {[%clk 0:02:13]}  e4 {[%clk 0:01:52]} 18. e3 {[%clk 0:02:07]}  Bc4 {[%clk 0:01:41]} 19. Bxc4 {[%clk 0:02:01]}  Qxc4 {[%clk 0:01:42]} 20. Nd2 {[%clk 0:02:02]}  Qd5 {[%clk 0:01:41]} 21. c4 {[%clk 0:02:01]}  Qh5 {[%clk 0:01:41]} 22. Bc3 {[%clk 0:01:59]}  Ng4 {[%clk 0:01:37]} 23. Nf1 {[%clk 0:01:59]}  Nge5 {[%clk 0:01:28]} 24. Red1 {[%clk 0:01:43]}  Rab8 {[%clk 0:01:11]} 25. Rd5 {[%clk 0:01:39]}  Nf3+ {[%clk 0:01:05]} 26. Kg2 {[%clk 0:01:35]}  Qg6 {[%clk 0:00:59]} 27. Nd2 {[%clk 0:01:28]}  Ng5 {[%clk 0:00:36]} 28. Qc2 {[%clk 0:01:15]}  f5 {[%clk 0:00:33]} 29. Rb1 {[%clk 0:01:01]}  Rf7 {[%clk 0:00:31]} 30. h4 {[%clk 0:00:53]}  Ne6 {[%clk 0:00:26]} 31. Rd6 {[%clk 0:00:52]}  Re8 {[%clk 0:00:22]} 32. Qd1 {[%clk 0:00:44]}  h5 {[%clk 0:00:21]} 33. Kh2 {[%clk 0:00:38]}  Rc7 {[%clk 0:00:12]} 34. Nb3 {[%clk 0:00:37]}  Qf7 {[%clk 0:00:11]} 35. Nd4 {[%clk 0:00:31]}  Nxc5 {[%clk 0:00:08]} 36. Nxc6 {[%clk 0:00:29]}  bxc6 {[%clk 0:00:09]} 37. Ba5 {[%clk 0:00:20]}  Rcc8 {[%clk 0:00:06]} 38. Qd4 {[%clk 0:00:19]}  Nd3 {[%clk 0:00:07]} 39. Rd7 {[%clk 0:00:18]}  Re7 {[%clk 0:00:07]} 40. Rbb7 {[%clk 0:00:17]}  Rxd7 {[%clk 0:00:04]} 41. Rxd7 {[%clk 0:00:18]}  Qg6 {[%clk 0:00:04]} 42. Bc3 {[%clk 0:00:18]}  Kf8 {[%clk 0:00:02]} 43. Rxg7 {[%clk 0:00:17]}  Qe6 {[%clk 0:00:03]} 44. Rh7 {[%clk 0:00:14]}  Nxf2 {[%clk 0:00:03]} 45. Qh8+ {[%clk 0:00:12]}  Qg8 {[%clk 0:00:03]} 46. Qf6+ {[%clk 0:00:13]} 1-0


[Site "https://www.chess.com"]